[Event "Titled Tuesday Blitz January 31 Late 2023"]
[White "Omelja, Artem"]
[Black "Olsson, William"]
[WhiteFideId "14119846"]
[BlackFideId "1741721"]
[WhiteElo "2446"]
[BlackElo "2355"]
[Result "0-1"]
[Round "01"]
[TimeControl "180+2"]
[Date "2023.01.31"]
[WhiteClock "0:00:06"]
[BlackClock "0:00:19"]

1. e4 {[%clk 0:02:58]}  c5 {[%clk 0:02:59]} 2. Nf3 {[%clk 0:02:57]}  d6 {[%clk 0:02:59]} 3. Bb5+ {[%clk 0:02:56]}  Nd7 {[%clk 0:02:59]} 4. a4 {[%clk 0:02:55]}  Nf6 {[%clk 0:02:57]} 5. Qe2 {[%clk 0:02:53]}  g6 {[%clk 0:02:55]} 6. O-O {[%clk 0:02:53]}  Bg7 {[%clk 0:02:55]} 7. c3 {[%clk 0:02:53]}  O-O {[%clk 0:02:55]} 8. d4 {[%clk 0:02:53]}  e5 {[%clk 0:02:50]} 9. dxe5 {[%clk 0:02:49]}  dxe5 {[%clk 0:02:37]} 10. Rd1 {[%clk 0:02:46]}  Qc7 {[%clk 0:02:36]} 11. Nbd2 {[%clk 0:02:45]}  a6 {[%clk 0:02:35]} 12. Bc4 {[%clk 0:02:39]}  b6 {[%clk 0:02:29]} 13. Bb3 {[%clk 0:02:29]}  Bb7 {[%clk 0:02:26]} 14. Bc2 {[%clk 0:02:22]}  Rfd8 {[%clk 0:01:43]} 15. Nf1 {[%clk 0:02:07]}  Nf8 {[%clk 0:01:32]} 16. Bg5 {[%clk 0:02:01]}  Rxd1 {[%clk 0:01:28]} 17. Rxd1 {[%clk 0:01:59]}  Ne6 {[%clk 0:01:28]} 18. Bc1 {[%clk 0:01:55]}  Rd8 {[%clk 0:01:09]} 19. Rxd8+ {[%clk 0:01:53]}  Qxd8 {[%clk 0:01:10]} 20. N1d2 {[%clk 0:01:51]}  Nf4 {[%clk 0:01:09]} 21. Qe3 {[%clk 0:01:48]}  Ng4 {[%clk 0:01:02]} 22. Qe1 {[%clk 0:01:46]}  Nd3 {[%clk 0:00:58]} 23. Bxd3 {[%clk 0:01:40]}  Qxd3 {[%clk 0:00:59]} 24. h3 {[%clk 0:01:32]}  Nh6 {[%clk 0:00:52]} 25. Qf1 {[%clk 0:01:12]}  Qxf1+ {[%clk 0:00:45]} 26. Kxf1 {[%clk 0:01:13]}  f6 {[%clk 0:00:37]} 27. Ke2 {[%clk 0:01:06]}  Nf7 {[%clk 0:00:35]} 28. Nc4 {[%clk 0:01:04]}  b5 {[%clk 0:00:35]} 29. axb5 {[%clk 0:01:02]}  axb5 {[%clk 0:00:35]} 30. Ncd2 {[%clk 0:01:03]}  Nd6 {[%clk 0:00:33]} 31. Kd3 {[%clk 0:00:15]}  c4+ {[%clk 0:00:32]} 32. Ke2 {[%clk 0:00:15]}  Nxe4 {[%clk 0:00:32]} 33. Nxe4 {[%clk 0:00:15]}  Bxe4 {[%clk 0:00:33]} 34. g3 {[%clk 0:00:16]}  Kf7 {[%clk 0:00:32]} 35. Nd2 {[%clk 0:00:13]}  Bd5 {[%clk 0:00:32]} 36. h4 {[%clk 0:00:14]}  h5 {[%clk 0:00:30]} 37. Nf1 {[%clk 0:00:13]}  Ke6 {[%clk 0:00:31]} 38. Be3 {[%clk 0:00:13]}  f5 {[%clk 0:00:30]} 39. Bg5 {[%clk 0:00:13]}  Be4 {[%clk 0:00:23]} 40. f4 {[%clk 0:00:13]}  Bd3+ {[%clk 0:00:24]} 41. Kf2 {[%clk 0:00:13]}  Bxf1 {[%clk 0:00:21]} 42. Kxf1 {[%clk 0:00:14]}  e4 {[%clk 0:00:21]} 43. Bd8 {[%clk 0:00:13]}  Bf8 {[%clk 0:00:21]} 44. Ke2 {[%clk 0:00:12]}  Bc5 {[%clk 0:00:21]} 45. Bc7 {[%clk 0:00:11]}  b4 {[%clk 0:00:20]} 46. Ba5 {[%clk 0:00:10]}  b3 {[%clk 0:00:20]} 47. Bd8 {[%clk 0:00:09]}  Ba3 {[%clk 0:00:20]} 48. Kd2 {[%clk 0:00:07]}  Bxb2 {[%clk 0:00:20]} 49. Ba5 {[%clk 0:00:04]}  Ba3 {[%clk 0:00:19]} 50. Bb6 {[%clk 0:00:05]}  Kd5 {[%clk 0:00:20]} 51. Be3 {[%clk 0:00:05]}  b2 {[%clk 0:00:20]} 52. Kc2 {[%clk 0:00:05]}  Bc5 {[%clk 0:00:18]} 53. Bd2 {[%clk 0:00:04]}  e3 {[%clk 0:00:18]} 54. Be1 {[%clk 0:00:04]}  Ke4 {[%clk 0:00:18]} 55. Kb1 {[%clk 0:00:05]}  Kf3 {[%clk 0:00:18]} 56. Kxb2 {[%clk 0:00:06]}  Ke2 {[%clk 0:00:19]} 0-1


[Site "https://www.chess.com"]

[Event "Titled Tuesday Blitz January 31 Late 2023"]
[White "Sohier, Julien"]
[Black "Richter, Paul"]
[WhiteFideId "645346"]
[BlackFideId "2046350"]
[WhiteElo "2214"]
[BlackElo "2171"]
[Result "1-0"]
[Round "01"]
[TimeControl "180+2"]
[Date "2023.01.31"]
[WhiteClock "0:00:15"]
[BlackClock "0:00:02"]

1. e4 {[%clk 0:02:24]}  c5 {[%clk 0:02:59]} 2. Nc3 {[%clk 0:02:23]}  a6 {[%clk 0:02:59]} 3. Nf3 {[%clk 0:02:23]}  b5 {[%clk 0:02:59]} 4. g3 {[%clk 0:02:23]}  Bb7 {[%clk 0:02:59]} 5. Bg2 {[%clk 0:02:22]}  b4 {[%clk 0:02:59]} 6. Na4 {[%clk 0:02:22]}  e6 {[%clk 0:02:59]} 7. d4 {[%clk 0:02:22]}  Bxe4 {[%clk 0:02:39]} 8. Nxc5 {[%clk 0:02:20]}  Bxc5 {[%clk 0:02:38]} 9. dxc5 {[%clk 0:02:21]}  Qa5 {[%clk 0:02:21]} 10. Qd4 {[%clk 0:02:09]}  Nf6 {[%clk 0:02:15]} 11. O-O {[%clk 0:02:05]}  Nc6 {[%clk 0:02:07]} 12. Qd6 {[%clk 0:02:05]}  h6 {[%clk 0:01:46]} 13. Bf4 {[%clk 0:01:47]}  Qd8 {[%clk 0:01:29]} 14. Rad1 {[%clk 0:01:46]}  Bxc2 {[%clk 0:01:23]} 15. Rc1 {[%clk 0:01:42]}  Be4 {[%clk 0:01:23]} 16. Rfe1 {[%clk 0:01:37]}  Bd5 {[%clk 0:01:17]} 17. Ne5 {[%clk 0:01:22]}  Bxg2 {[%clk 0:01:06]} 18. Kxg2 {[%clk 0:01:23]}  Rc8 {[%clk 0:00:56]} 19. Red1 {[%clk 0:01:17]}  Nxe5 {[%clk 0:00:28]} 20. Bxe5 {[%clk 0:01:17]}  Qe7 {[%clk 0:00:18]} 21. Qxa6 {[%clk 0:01:08]}  Rc6 {[%clk 0:00:14]} 22. Qa8+ {[%clk 0:00:51]}  Qd8 {[%clk 0:00:14]} 23. Qxc6 {[%clk 0:00:46]}  dxc6 {[%clk 0:00:13]} 24. Rxd8+ {[%clk 0:00:46]}  Kxd8 {[%clk 0:00:14]} 25. Rc4 {[%clk 0:00:46]}  Nd5 {[%clk 0:00:12]} 26. Bxg7 {[%clk 0:00:46]}  Rh7 {[%clk 0:00:13]} 27. Be5 {[%clk 0:00:44]}  f5 {[%clk 0:00:13]} 28. a3 {[%clk 0:00:41]}  bxa3 {[%clk 0:00:14]} 29. bxa3 {[%clk 0:00:42]}  Ra7 {[%clk 0:00:14]} 30. a4 {[%clk 0:00:41]}  Ke8 {[%clk 0:00:12]} 31. Kh3 {[%clk 0:00:35]}  Kf7 {[%clk 0:00:12]} 32. Kh4 {[%clk 0:00:35]}  Rb7 {[%clk 0:00:12]} 33. a5 {[%clk 0:00:35]}  Ra7 {[%clk 0:00:09]} 34. Ra4 {[%clk 0:00:34]}  Ra6 {[%clk 0:00:09]} 35. Kh5 {[%clk 0:00:32]}  Ne7 {[%clk 0:00:06]} 36. Kxh6 {[%clk 0:00:28]}  Ng6 {[%clk 0:00:06]} 37. Bd6 {[%clk 0:00:27]}  Kf6 {[%clk 0:00:07]} 38. f4 {[%clk 0:00:26]}  Ra8 {[%clk 0:00:07]} 39. Be5+ {[%clk 0:00:24]}  Nxe5 {[%clk 0:00:07]} 40. fxe5+ {[%clk 0:00:25]}  Kxe5 {[%clk 0:00:07]} 41. Kg5 {[%clk 0:00:25]}  Kd5 {[%clk 0:00:07]} 42. Kf6 {[%clk 0:00:24]}  Rf8+ {[%clk 0:00:06]} 43. Ke7 {[%clk 0:00:24]}  Ra8 {[%clk 0:00:07]} 44. a6 {[%clk 0:00:23]}  e5 {[%clk 0:00:07]} 45. Kf6 {[%clk 0:00:18]}  f4 {[%clk 0:00:05]} 46. gxf4 {[%clk 0:00:18]}  exf4 {[%clk 0:00:06]} 47. Rxf4 {[%clk 0:00:18]}  Rxa6 {[%clk 0:00:06]} 48. Rf5+ {[%clk 0:00:17]}  Kd4 {[%clk 0:00:06]} 49. h4 {[%clk 0:00:17]}  Ra2 {[%clk 0:00:06]} 50. h5 {[%clk 0:00:17]}  Rh2 {[%clk 0:00:06]} 51. Kg6 {[%clk 0:00:16]}  Ke4 {[%clk 0:00:05]} 52. Rg5 {[%clk 0:00:16]}  Kd4 {[%clk 0:00:01]} 53. h6 {[%clk 0:00:16]}  Rh1 {[%clk 0:00:02]} 54. h7 {[%clk 0:00:16]}  Rh2 {[%clk 0:00:02]} 55. Kg7 {[%clk 0:00:15]} 1-0


[Site "https://www.chess.com"]

[Event "Titled Tuesday Blitz January 31 Late 2023"]
[White "Harish, Neeraj"]
[Black "Bayo Milagro, Alvaro"]
[WhiteFideId "30958130"]
[BlackFideId "22275240"]
[WhiteElo "2232"]
[BlackElo "2287"]
[Result "0-1"]
[Round "01"]
[TimeControl "180+2"]
[Date "2023.01.31"]
[WhiteClock "0:00:07"]
[BlackClock "0:01:00"]

1. e4 {[%clk 0:02:59]}  e5 {[%clk 0:02:59]} 2. Nf3 {[%clk 0:02:59]}  Nc6 {[%clk 0:03:00]} 3. Bc4 {[%clk 0:02:59]}  Nf6 {[%clk 0:02:59]} 4. d3 {[%clk 0:02:59]}  Be7 {[%clk 0:02:59]} 5. O-O {[%clk 0:02:59]}  O-O {[%clk 0:03:00]} 6. Nc3 {[%clk 0:02:56]}  d6 {[%clk 0:02:59]} 7. a4 {[%clk 0:02:55]}  Na5 {[%clk 0:02:59]} 8. Ba2 {[%clk 0:02:55]}  c5 {[%clk 0:03:00]} 9. Bg5 {[%clk 0:02:55]}  Nc6 {[%clk 0:03:00]} 10. Bxf6 {[%clk 0:02:54]}  Bxf6 {[%clk 0:02:59]} 11. Nd5 {[%clk 0:02:55]}  Be6 {[%clk 0:03:00]} 12. c3 {[%clk 0:02:52]}  g6 {[%clk 0:02:58]} 13. Qd2 {[%clk 0:02:47]}  Bg7 {[%clk 0:02:58]} 14. b4 {[%clk 0:02:47]}  Ne7 {[%clk 0:02:52]} 15. Rab1 {[%clk 0:02:11]}  Nxd5 {[%clk 0:02:48]} 16. Bxd5 {[%clk 0:02:10]}  Bxd5 {[%clk 0:02:47]} 17. exd5 {[%clk 0:02:11]}  b6 {[%clk 0:02:47]} 18. Qe2 {[%clk 0:01:53]}  cxb4 {[%clk 0:02:40]} 19. cxb4 {[%clk 0:01:52]}  Rc8 {[%clk 0:02:41]} 20. Rfc1 {[%clk 0:01:51]}  Qd7 {[%clk 0:02:41]} 21. Nd2 {[%clk 0:01:39]}  Qxa4 {[%clk 0:02:37]} 22. Nc4 {[%clk 0:01:23]}  Qd7 {[%clk 0:02:29]} 23. b5 {[%clk 0:01:11]}  Rc5 {[%clk 0:02:25]} 24. Qa2 {[%clk 0:00:38]}  Rfc8 {[%clk 0:02:19]} 25. h3 {[%clk 0:00:36]}  Bh6 {[%clk 0:01:57]} 26. Rd1 {[%clk 0:00:32]}  Bf8 {[%clk 0:01:52]} 27. Qa4 {[%clk 0:00:24]}  Rxd5 {[%clk 0:01:48]} 28. Ra1 {[%clk 0:00:21]}  Rc7 {[%clk 0:01:40]} 29. Rab1 {[%clk 0:00:19]}  Rdc5 {[%clk 0:01:34]} 30. Qb3 {[%clk 0:00:16]}  Bg7 {[%clk 0:01:30]} 31. Ne3 {[%clk 0:00:16]}  d5 {[%clk 0:01:29]} 32. g3 {[%clk 0:00:14]}  h5 {[%clk 0:01:21]} 33. Kg2 {[%clk 0:00:14]}  Bf6 {[%clk 0:01:19]} 34. h4 {[%clk 0:00:14]}  Kg7 {[%clk 0:01:19]} 35. Rd2 {[%clk 0:00:12]}  d4 {[%clk 0:01:11]} 36. Nc4 {[%clk 0:00:13]}  e4 {[%clk 0:01:09]} 37. Ra2 {[%clk 0:00:08]}  exd3 {[%clk 0:01:05]} 38. Nd2 {[%clk 0:00:08]}  Rc2 {[%clk 0:01:00]} 39. Qxd3 {[%clk 0:00:07]}  Rxa2 {[%clk 0:01:00]} 0-1


[Site "https://www.chess.com"]

[Event "Titled Tuesday Blitz January 31 Late 2023"]
[White "Hartikainen, Jarmo"]
[Black "Al-Tarboush, Ward"]
[WhiteFideId "503134"]
[BlackFideId "7601450"]
[WhiteElo "2108"]
[BlackElo "2256"]
[Result "1-0"]
[Round "01"]
[TimeControl "180+2"]
[Date "2023.01.31"]
[WhiteClock "0:00:01"]
[BlackClock "0:00:01"]

1. e4 {[%clk 0:02:58]}  c5 {[%clk 0:03:00]} 2. c3 {[%clk 0:02:57]}  d5 {[%clk 0:03:00]} 3. exd5 {[%clk 0:02:57]}  Qxd5 {[%clk 0:03:01]} 4. d4 {[%clk 0:02:58]}  Nc6 {[%clk 0:03:00]} 5. Nf3 {[%clk 0:02:57]}  Bg4 {[%clk 0:03:01]} 6. Be2 {[%clk 0:02:55]}  Nf6 {[%clk 0:03:00]} 7. Na3 {[%clk 0:02:53]}  e6 {[%clk 0:02:58]} 8. O-O {[%clk 0:02:49]}  cxd4 {[%clk 0:02:55]} 9. Nb5 {[%clk 0:02:46]}  O-O-O {[%clk 0:02:53]} 10. Nbxd4 {[%clk 0:02:32]}  e5 {[%clk 0:02:44]} 11. Nxc6 {[%clk 0:02:25]}  Qxc6 {[%clk 0:02:45]} 12. Qc2 {[%clk 0:01:24]}  Bd6 {[%clk 0:02:40]} 13. Be3 {[%clk 0:01:22]}  Qc7 {[%clk 0:02:33]} 14. h3 {[%clk 0:01:17]}  h5 {[%clk 0:02:29]} 15. a4 {[%clk 0:01:17]}  Kb8 {[%clk 0:02:15]} 16. a5 {[%clk 0:01:16]}  Nd5 {[%clk 0:02:13]} 17. a6 {[%clk 0:00:52]}  b6 {[%clk 0:02:12]} 18. Qb3 {[%clk 0:00:48]}  e4 {[%clk 0:02:07]} 19. Nd4 {[%clk 0:00:45]}  f5 {[%clk 0:01:49]} 20. Nb5 {[%clk 0:00:44]}  Qd7 {[%clk 0:01:44]} 21. Nxd6 {[%clk 0:00:43]}  Qxd6 {[%clk 0:01:44]} 22. Bc4 {[%clk 0:00:30]}  Nxe3 {[%clk 0:01:39]} 23. fxe3 {[%clk 0:00:29]}  Bxh3 {[%clk 0:01:39]} 24. Rf2 {[%clk 0:00:19]}  Qg3 {[%clk 0:01:34]} 25. Bf1 {[%clk 0:00:16]}  f4 {[%clk 0:01:18]} 26. Qf7 {[%clk 0:00:12]}  Rd7 {[%clk 0:01:17]} 27. Qxf4+ {[%clk 0:00:12]}  Qxf4 {[%clk 0:01:14]} 28. Rxf4 {[%clk 0:00:12]}  Bg4 {[%clk 0:01:12]} 29. Rxe4 {[%clk 0:00:08]}  Rd2 {[%clk 0:01:12]} 30. Re7 {[%clk 0:00:08]}  Rxb2 {[%clk 0:01:05]} 31. Rb7+ {[%clk 0:00:08]}  Ka8 {[%clk 0:01:03]} 32. Bc4 {[%clk 0:00:08]}  Rd8 {[%clk 0:01:02]} 33. Rxg7 {[%clk 0:00:07]}  Rbd2 {[%clk 0:00:41]} 34. e4 {[%clk 0:00:06]}  R2d7 {[%clk 0:00:36]} 35. Bd5+ {[%clk 0:00:06]}  Kb8 {[%clk 0:00:36]} 36. Rxd7 {[%clk 0:00:06]}  Rxd7 {[%clk 0:00:37]} 37. Rf1 {[%clk 0:00:06]}  Kc7 {[%clk 0:00:23]} 38. Rf6 {[%clk 0:00:06]}  Re7 {[%clk 0:00:18]} 39. Kf2 {[%clk 0:00:06]}  Bd1 {[%clk 0:00:16]} 40. Ke3 {[%clk 0:00:05]}  Bc2 {[%clk 0:00:16]} 41. Rh6 {[%clk 0:00:03]}  Bd1 {[%clk 0:00:16]} 42. Rg6 {[%clk 0:00:03]}  Ba4 {[%clk 0:00:14]} 43. Rf6 {[%clk 0:00:03]}  Bb5 {[%clk 0:00:14]} 44. Bb7 {[%clk 0:00:03]}  Re5 {[%clk 0:00:09]} 45. Kf4 {[%clk 0:00:02]}  Rc5 {[%clk 0:00:09]} 46. Rf5 {[%clk 0:00:02]}  Kd6 {[%clk 0:00:03]} 47. Rxc5 {[%clk 0:00:02]}  bxc5 {[%clk 0:00:02]} 48. Kf5 {[%clk 0:00:02]}  Ke7 {[%clk 0:00:01]} 49. e5 {[%clk 0:00:01]} 1-0


[Site "https://www.chess.com"]

[Event "Titled Tuesday Blitz January 31 Late 2023"]
[White "EdmundPlayer"]
[Black "Sivakumar, Shaaketh"]
[BlackFideId "30940176"]
[WhiteElo "2313"]
[BlackElo "2337"]
[Result "0-1"]
[Round "01"]
[TimeControl "180+2"]
[Date "2023.01.31"]
[WhiteClock "0:00:04"]
[BlackClock "0:01:00"]

1. e4 {[%clk 0:03:00]}  e6 {[%clk 0:02:58]} 2. d4 {[%clk 0:03:00]}  d5 {[%clk 0:02:58]} 3. Nc3 {[%clk 0:02:59]}  Bb4 {[%clk 0:02:56]} 4. Ne2 {[%clk 0:02:59]}  Nf6 {[%clk 0:02:55]} 5. e5 {[%clk 0:02:44]}  Nfd7 {[%clk 0:02:51]} 6. Be3 {[%clk 0:02:37]}  c5 {[%clk 0:02:43]} 7. a3 {[%clk 0:02:34]}  Bxc3+ {[%clk 0:02:43]} 8. bxc3 {[%clk 0:02:34]}  Nc6 {[%clk 0:02:44]} 9. Nf4 {[%clk 0:02:17]}  Qa5 {[%clk 0:02:39]} 10. Qd2 {[%clk 0:02:09]}  cxd4 {[%clk 0:02:29]} 11. cxd4 {[%clk 0:02:09]}  Qxd2+ {[%clk 0:02:29]} 12. Kxd2 {[%clk 0:02:09]}  Nb6 {[%clk 0:02:25]} 13. Rb1 {[%clk 0:02:03]}  Na5 {[%clk 0:02:24]} 14. Bb5+ {[%clk 0:01:54]}  Bd7 {[%clk 0:02:20]} 15. Nh5 {[%clk 0:01:45]}  Bxb5 {[%clk 0:02:03]} 16. Rxb5 {[%clk 0:01:37]}  Nac4+ {[%clk 0:02:04]} 17. Ke2 {[%clk 0:01:36]}  Nxa3 {[%clk 0:02:02]} 18. Rb3 {[%clk 0:01:23]}  Nxc2 {[%clk 0:02:00]} 19. Nxg7+ {[%clk 0:01:22]}  Ke7 {[%clk 0:01:56]} 20. Bg5+ {[%clk 0:01:05]}  Kd7 {[%clk 0:01:55]} 21. Kd3 {[%clk 0:01:02]}  Rhc8 {[%clk 0:01:50]} 22. Nh5 {[%clk 0:00:54]}  Rc4 {[%clk 0:01:46]} 23. Nf6+ {[%clk 0:00:51]}  Kc6 {[%clk 0:01:47]} 24. Rc3 {[%clk 0:00:46]}  Nb4+ {[%clk 0:01:42]} 25. Kd2 {[%clk 0:00:46]}  a5 {[%clk 0:01:39]} 26. Rb1 {[%clk 0:00:39]}  Na4 {[%clk 0:01:32]} 27. Rcc1 {[%clk 0:00:20]}  Nb6 {[%clk 0:01:19]} 28. Nxh7 {[%clk 0:00:19]}  Rxc1 {[%clk 0:01:17]} 29. Rxc1+ {[%clk 0:00:18]}  Nc4+ {[%clk 0:01:18]} 30. Ke2 {[%clk 0:00:16]}  a4 {[%clk 0:01:13]} 31. h4 {[%clk 0:00:16]}  a3 {[%clk 0:01:13]} 32. Bf6 {[%clk 0:00:12]}  a2 {[%clk 0:01:13]} 33. h5 {[%clk 0:00:08]}  a1=Q {[%clk 0:01:13]} 34. Rxa1 {[%clk 0:00:08]}  Rxa1 {[%clk 0:01:14]} 35. Ng5 {[%clk 0:00:06]}  Rh1 {[%clk 0:01:13]} 36. Nh3 {[%clk 0:00:06]}  Nc2 {[%clk 0:01:04]} 37. h6 {[%clk 0:00:05]}  Nxd4+ {[%clk 0:01:01]} 38. Kd3 {[%clk 0:00:05]}  Rd1+ {[%clk 0:01:00]} 39. Kc3 {[%clk 0:00:04]}  Ne2+ {[%clk 0:01:00]} 40. Kc2 {[%clk 0:00:04]}  Rd2+ {[%clk 0:01:00]} 41. Kb3 {[%clk 0:00:04]}  Rb2+ {[%clk 0:01:00]} 42. Ka4 {[%clk 0:00:04]}  b5# {[%clk 0:01:00]} 0-1


[Site "https://www.chess.com"]

[Event "Titled Tuesday Blitz January 31 Late 2023"]
[White "CheckBits"]
[Black "Hirneise, Jens"]
[BlackFideId "24614734"]
[WhiteElo "2478"]
[BlackElo "2277"]
[Result "1/2-1/2"]
[Round "01"]
[TimeControl "180+2"]
[Date "2023.01.31"]
[WhiteClock "0:00:12"]
[BlackClock "0:00:32"]

1. e4 {[%clk 0:02:56]}  d5 {[%clk 0:02:52]} 2. exd5 {[%clk 0:02:52]}  Nf6 {[%clk 0:02:53]} 3. d4 {[%clk 0:02:50]}  Nxd5 {[%clk 0:02:52]} 4. h3 {[%clk 0:02:48]}  g6 {[%clk 0:02:52]} 5. Nf3 {[%clk 0:02:48]}  Bg7 {[%clk 0:02:52]} 6. Bc4 {[%clk 0:02:48]}  O-O {[%clk 0:02:51]} 7. O-O {[%clk 0:02:48]}  a6 {[%clk 0:02:45]} 8. Re1 {[%clk 0:02:47]}  Nc6 {[%clk 0:02:39]} 9. c3 {[%clk 0:02:44]}  h6 {[%clk 0:02:34]} 10. Nbd2 {[%clk 0:02:35]}  Re8 {[%clk 0:02:32]} 11. Ne4 {[%clk 0:02:32]}  b5 {[%clk 0:02:30]} 12. Bf1 {[%clk 0:02:27]}  Nb6 {[%clk 0:02:24]} 13. Bf4 {[%clk 0:02:23]}  Be6 {[%clk 0:02:13]} 14. Nc5 {[%clk 0:01:44]}  Bd5 {[%clk 0:02:12]} 15. Ne5 {[%clk 0:01:40]}  Nxe5 {[%clk 0:01:52]} 16. Bxe5 {[%clk 0:01:39]}  Bxe5 {[%clk 0:01:45]} 17. Rxe5 {[%clk 0:01:38]}  Qd6 {[%clk 0:01:45]} 18. Qg4 {[%clk 0:01:33]}  Kg7 {[%clk 0:01:32]} 19. a4 {[%clk 0:01:26]}  Bc4 {[%clk 0:01:28]} 20. Qf3 {[%clk 0:01:08]}  Bxf1 {[%clk 0:01:25]} 21. Rxf1 {[%clk 0:01:01]}  Nxa4 {[%clk 0:01:18]} 22. Nxa4 {[%clk 0:00:56]}  bxa4 {[%clk 0:01:18]} 23. Ra1 {[%clk 0:00:54]}  Rab8 {[%clk 0:01:16]} 24. Qe2 {[%clk 0:00:52]}  e6 {[%clk 0:01:06]} 25. Rxa4 {[%clk 0:00:50]}  Rb6 {[%clk 0:01:02]} 26. Rea5 {[%clk 0:00:47]}  Reb8 {[%clk 0:00:59]} 27. b4 {[%clk 0:00:39]}  Rc6 {[%clk 0:00:59]} 28. Rxa6 {[%clk 0:00:34]}  Qd5 {[%clk 0:00:55]} 29. Rxc6 {[%clk 0:00:30]}  Qxc6 {[%clk 0:00:55]} 30. Qe5+ {[%clk 0:00:29]}  f6 {[%clk 0:00:52]} 31. Ra6 {[%clk 0:00:24]}  Qxc3 {[%clk 0:00:45]} 32. Qxe6 {[%clk 0:00:13]}  Qc1+ {[%clk 0:00:40]} 33. Kh2 {[%clk 0:00:12]}  Qf4+ {[%clk 0:00:40]} 34. Kg1 {[%clk 0:00:12]}  Qc1+ {[%clk 0:00:40]} 35. Kh2 {[%clk 0:00:12]}  Qf4+ {[%clk 0:00:40]} 36. Kg1 {[%clk 0:00:12]}  Qc1+ {[%clk 0:00:32]} 1/2-1/2


[Site "https://www.chess.com"]

[Event "Titled Tuesday Blitz January 31 Late 2023"]
[White "Migot, Tangi"]
[Black "Curtis, John"]
[WhiteFideId "662445"]
[BlackFideId "3200256"]
[WhiteElo "2373"]
[BlackElo "2292"]
[Result "1-0"]
[Round "01"]
[TimeControl "180+2"]
[Date "2023.01.31"]
[WhiteClock "0:01:29"]
[BlackClock "0:00:44"]

1. d4 {[%clk 0:02:59]}  Nf6 {[%clk 0:02:59]} 2. Nc3 {[%clk 0:02:59]}  d5 {[%clk 0:02:59]} 3. Bg5 {[%clk 0:03:00]}  Nbd7 {[%clk 0:02:56]} 4. Qd3 {[%clk 0:02:59]}  c6 {[%clk 0:02:52]} 5. Nf3 {[%clk 0:02:59]}  h6 {[%clk 0:02:51]} 6. Bxf6 {[%clk 0:02:54]}  Nxf6 {[%clk 0:02:50]} 7. O-O-O {[%clk 0:02:52]}  g6 {[%clk 0:02:48]} 8. e4 {[%clk 0:02:52]}  dxe4 {[%clk 0:02:46]} 9. Nxe4 {[%clk 0:02:53]}  Nxe4 {[%clk 0:02:45]} 10. Qxe4 {[%clk 0:02:54]}  Bg7 {[%clk 0:02:45]} 11. Bc4 {[%clk 0:02:53]}  Bf5 {[%clk 0:02:44]} 12. Qe2 {[%clk 0:02:53]}  O-O {[%clk 0:02:41]} 13. Ne5 {[%clk 0:02:53]}  Qc8 {[%clk 0:02:27]} 14. g4 {[%clk 0:02:46]}  Bxe5 {[%clk 0:02:16]} 15. Qxe5 {[%clk 0:02:37]}  Be6 {[%clk 0:01:53]} 16. Bxe6 {[%clk 0:02:23]}  Qxe6 {[%clk 0:01:53]} 17. Qf4 {[%clk 0:02:24]}  Kg7 {[%clk 0:01:46]} 18. Kb1 {[%clk 0:02:21]}  Qf6 {[%clk 0:01:36]} 19. Qxf6+ {[%clk 0:02:17]}  Kxf6 {[%clk 0:01:36]} 20. h4 {[%clk 0:02:14]}  Rad8 {[%clk 0:01:32]} 21. Rhe1 {[%clk 0:02:11]}  Rd5 {[%clk 0:01:26]} 22. c4 {[%clk 0:02:09]}  Rd7 {[%clk 0:01:26]} 23. Kc2 {[%clk 0:02:08]}  e6 {[%clk 0:01:26]} 24. Re3 {[%clk 0:02:04]}  g5 {[%clk 0:01:25]} 25. Rf3+ {[%clk 0:02:01]}  Kg6 {[%clk 0:01:23]} 26. h5+ {[%clk 0:02:00]}  Kg7 {[%clk 0:01:23]} 27. Ra3 {[%clk 0:01:57]}  a6 {[%clk 0:01:22]} 28. Rad3 {[%clk 0:01:55]}  f5 {[%clk 0:01:23]} 29. gxf5 {[%clk 0:01:51]}  Rxf5 {[%clk 0:01:22]} 30. R1d2 {[%clk 0:01:47]}  Rdf7 {[%clk 0:01:21]} 31. Re3 {[%clk 0:01:44]}  Rxf2 {[%clk 0:01:19]} 32. Rxe6 {[%clk 0:01:42]}  Rxd2+ {[%clk 0:01:17]} 33. Kxd2 {[%clk 0:01:43]}  Rf2+ {[%clk 0:01:10]} 34. Kc3 {[%clk 0:01:43]}  Rh2 {[%clk 0:01:03]} 35. d5 {[%clk 0:01:36]}  cxd5 {[%clk 0:01:02]} 36. cxd5 {[%clk 0:01:37]}  Rxh5 {[%clk 0:01:00]} 37. d6 {[%clk 0:01:37]}  g4 {[%clk 0:00:56]} 38. Kc4 {[%clk 0:01:37]}  Kf7 {[%clk 0:00:47]} 39. Re7+ {[%clk 0:01:35]}  Kf6 {[%clk 0:00:46]} 40. Re4 {[%clk 0:01:33]}  Rg5 {[%clk 0:00:45]} 41. d7 {[%clk 0:01:31]}  Rg8 {[%clk 0:00:45]} 42. Re8 {[%clk 0:01:29]}  Rxe8 {[%clk 0:00:44]} 43. dxe8=Q {[%clk 0:01:29]} 1-0


[Site "https://www.chess.com"]